bitfinex-derivatives/quotes_BTCF0:USTF0_20251125
["timestamp","ask_amount","ask_price","bid_price","bid_amount"]
[1764032157081,0.13732,88200.0,88199.0,0.41187653]
[1764032158383,0.13951803,88200.0,88199.0,0.41187653]
[1764032160693,0.13951803,88200.0,88199.0,0.40053463]
[1764032161189,0.13951803,88200.0,88199.0,0.62017463]
[1764032161791,0.03487803,88200.0,88191.0,0.00017012]
[1764032161980,0.49684,88192.0,88191.0,0.42070475]
[1764032162183,0.49903803,88192.0,88191.0,0.61168765]
[1764032162982,0.49903803,88192.0,88191.0,0.60034475]
[1764032163185,0.10464,88171.0,88170.0,0.26716614]
[1764032163388,0.10683803,88171.0,88170.0,0.60152023]
[1764032163581,0.0314,88176.0,88175.0,0.011345]
[1764032163791,0.0314,88184.0,88175.0,0.011345]
[1764032163792,0.0314,88184.0,88183.0,0.011344]
[1764032163990,0.03359803,88184.0,88183.0,0.59151863]
[1764032164196,0.08561803,88184.0,88183.0,0.59151863]
[1764032169202,0.03359803,88184.0,88183.0,0.59151863]
[1764032169400,0.03359803,88184.0,88183.0,0.58017463]
[1764032169401,0.13823803,88184.0,88183.0,0.58017463]
[1764032169899,0.49903803,88184.0,88183.0,0.58017463]
[1764032170295,0.49903803,88184.0,88183.0,0.40053463]
[1764032170499,0.49903803,88184.0,88183.0,0.58013463]
[1764032172002,0.49903803,88184.0,88183.0,0.59147863]
[1764032172396,0.49684,88184.0,88183.0,0.59147863]
[1764032173403,0.49903803,88184.0,88183.0,0.59147863]
[1764032174202,0.49903803,88184.0,88183.0,0.40053463]
[1764032184494,0.49684,88184.0,88183.0,0.40053463]
[1764032184801,0.44422,88184.0,88183.0,0.40053463]
[1764032185395,0.49954,88184.0,88183.0,0.40053463]
[1764032185592,0.50173803,88184.0,88183.0,0.40053463]
[1764032185796,0.50173803,88184.0,88183.0,0.58005463]
[1764032186305,0.50173803,88184.0,88183.0,0.66151185]
[1764032187307,0.50173803,88184.0,88183.0,0.58005463]
[1764032188301,0.50173803,88184.0,88183.0,0.66156059]
[1764032188498,0.50173803,88184.0,88183.0,0.48204059]
[1764032188701,0.10349,88182.0,88181.0,0.02186059]
[1764032188895,0.10568803,88182.0,88181.0,0.02186059]
[1764032189097,0.10568803,88182.0,88175.0,0.00017012]
[1764032189098,0.1452649,88176.0,88175.0,0.00017012]
[1764032189296,0.50826293,88176.0,88175.0,0.00017012]
[1764032191799,0.1148353,88173.0,88172.0,0.17948]
[1764032192099,0.11703333,88173.0,88172.0,0.19948]
[1764032192298,0.11703333,88173.0,88172.0,0.60948]
[1764032192504,0.11703333,88173.0,88172.0,0.19948]
[1764032193111,0.10568803,88173.0,88172.0,0.60948]
[1764032193809,0.10568803,88173.0,88172.0,0.63616]
[1764032201506,0.00219803,88173.0,88172.0,0.63616]
[1764032204418,0.3608,88176.0,88172.0,0.63616]
[1764032204621,0.3608,88176.0,88175.0,0.0124]
[1764032204813,0.3608,88176.0,88175.0,0.3924]
[1764032205125,0.41342803,88176.0,88175.0,0.3924]
[1764032205422,0.36299803,88176.0,88175.0,0.3924]
[1764032206823,0.41342803,88176.0,88175.0,0.3924]
[1764032208023,0.36299803,88176.0,88175.0,0.3924]
[1764032208328,0.05043,88184.0,88183.0,0.081484]
[1764032208618,0.10590803,88184.0,88183.0,0.660844]
[1764032209325,0.10590803,88184.0,88183.0,0.74237436]
[1764032209622,0.46670803,88184.0,88183.0,0.6495]
[1764032210016,0.46670803,88184.0,88183.0,0.57936]
[1764032210825,0.10371,88182.0,88181.0,0.08152822]
[1764032211127,0.10371,88182.0,88176.0,0.26088822]
[1764032211128,0.10371,88177.0,88176.0,0.26088822]
[1764032211320,0.10371,88177.0,88176.0,0.71088822]
[1764032211321,0.10590803,88177.0,88176.0,0.71088822]
[1764032211625,0.10590803,88177.0,88176.0,0.66443]
[1764032212326,0.10590803,88177.0,88176.0,0.74594604]
[1764032212825,0.10590803,88177.0,88176.0,0.78101604]
[1764032213327,0.10590803,88177.0,88176.0,0.74594604]
[1764032214116,0.10590803,88177.0,88176.0,0.78101604]
[1764032215326,0.10590803,88177.0,88176.0,0.6995]
[1764032216114,0.10590803,88177.0,88176.0,0.66443]
[1764032216323,0.10590803,88177.0,88176.0,0.45]
[1764032217125,0.10590803,88177.0,88176.0,0.48106]
[1764032217324,0.10590803,88177.0,88176.0,0.51212]
[1764032219823,0.0113463,88165.0,88156.0,9e-08]
[1764032220126,0.0113463,88165.0,88130.0,0.02703]
[1764032220127,0.0113507,88131.0,88130.0,0.19681491]
[1764032220327,0.0113512,88127.0,88120.0,0.16978491]
[1764032220516,0.0113512,88127.0,88126.0,0.09835369]
[1764032220517,0.00219803,88127.0,88126.0,0.09835369]
[1764032221029,0.36314196,88127.0,88126.0,0.09835369]
[1764032221417,0.36314196,88127.0,88126.0,0.00028369]
[1764032222928,0.36314196,88127.0,88126.0,0.52835369]
[1764032223527,0.36314196,88127.0,88126.0,0.09835369]
[1764032223729,0.36314196,88127.0,88126.0,0.50835369]
[1764032224131,0.36314196,88127.0,88126.0,0.09835369]
[1764032224725,0.36314196,88127.0,88126.0,0.50835369]
[1764032229135,0.36314196,88127.0,88126.0,0.09835369]
[1764032229329,0.36314196,88127.0,88126.0,0.47835369]
[1764032233843,0.36314196,88127.0,88126.0,0.48970499]
[1764032234137,0.36314196,88127.0,88126.0,0.47835369]
[1764032235829,0.36094393,88127.0,88126.0,0.47835369]
[1764032236023,0.28633393,88127.0,88126.0,0.47835369]
[1764032236228,0.00017012,88135.0,88134.0,0.1319703]
[1764032236427,0.00236815,88135.0,88134.0,0.5219703]
[1764032236629,0.00236815,88135.0,88134.0,0.51062]
[1764032248330,0.3608,88141.0,88140.0,0.12062]
[1764032248532,0.36299803,88141.0,88140.0,0.12062]
[1764032249034,0.36299803,88141.0,88140.0,0.16519]
[1764032249434,0.36299803,88141.0,88140.0,0.04457]
[1764032249937,0.39097044,88141.0,88140.0,0.04457]
[1764032251939,0.39097044,88141.0,88128.0,0.04457]
[1764032251940,0.0113509,88129.0,88128.0,0.04457]
[1764032252145,0.40232119,88129.0,88128.0,0.04457]
[1764032252442,0.40232119,88129.0,88128.0,0.11882]
[1764032252642,0.37434893,88129.0,88128.0,0.11882]
[1764032253545,0.37434893,88129.0,88128.0,0.16519]
[1764032254547,0.40231915,88129.0,88128.0,0.16519]
[1764032258846,0.37434893,88129.0,88128.0,0.5765411]
[1764032259051,0.37434893,88129.0,88128.0,0.16519]
[1764032259642,0.36299803,88129.0,88128.0,0.16519]
[1764032259842,0.36299803,88129.0,88128.0,0.57519]
[1764032260346,0.3608,88141.0,88140.0,0.1319695]
[1764032260543,0.00219803,88141.0,88140.0,0.1319695]
[1764032261236,0.00219803,88141.0,88140.0,0.5219695]
[1764032261848,0.3608,88142.0,88141.0,0.14627]
[1764032262152,0.011348,88152.0,88148.0,0.14164]
[1764032262348,0.00236815,88149.0,88148.0,0.14164]
[1764032262550,0.00017012,88149.0,88148.0,0.55164]
[1764032262748,0.3608,88159.0,88158.0,0.18405]
[1764032263047,0.3608,88159.0,88158.0,0.20405]
[1764032263242,0.3608,88159.0,88158.0,0.64405]
[1764032266049,0.00016979,88167.0,88166.0,0.14164]
[1764032266239,0.15811382,88167.0,88166.0,0.14164]
[1764032269046,0.15811382,88167.0,88166.0,0.59164]
[1764032269444,0.14676782,88167.0,88166.0,0.59164]
[1764032272558,0.00016979,88167.0,88166.0,0.59164]
[1764032272755,0.3608,88174.0,88173.0,0.14164]
[1764032273158,0.3608,88174.0,88173.0,0.56164]
[1764032274056,0.36299803,88174.0,88173.0,0.56164]
[1764032274255,0.44223313,88174.0,88173.0,0.14164]
[1764032275359,0.44223313,88174.0,88166.0,0.3608]
[1764032275360,0.011346,88167.0,88166.0,0.14524]
[1764032275558,0.011346,88167.0,88166.0,0.16524]
[1764032275559,0.15520403,88167.0,88166.0,0.16524]
[1764032276750,0.15520403,88167.0,88166.0,0.14524]
[1764032279974,0.15520403,88167.0,88166.0,0.57524]
[1764032280766,0.15520403,88167.0,88166.0,0.52524]
[1764032280962,0.14385803,88167.0,88166.0,0.52524]
[1764032281167,0.07254803,88167.0,88166.0,0.52524]
[1764032281569,0.00219803,88167.0,88166.0,0.52524]
[1764032282970,0.14385803,88167.0,88166.0,0.52524]
[1764032283880,0.00219803,88167.0,88166.0,0.52524]
[1764032285782,0.14385803,88167.0,88166.0,0.16524]
[1764032286876,0.14385803,88167.0,88166.0,0.14524]
[1764032287586,0.14385803,88167.0,88166.0,0.58524]
[1764032287881,0.14385803,88167.0,88166.0,0.14524]
[1764032289185,0.14385803,88167.0,88166.0,0.59524]
[1764032289575,0.14385803,88167.0,88166.0,0.53524]
[1764032289775,0.14385803,88167.0,88166.0,0.14524]
[1764032290484,0.1530071,88159.0,88158.0,0.14541012]
[1764032290684,0.1530071,88159.0,88158.0,0.18577012]
[1764032290685,0.51600513,88159.0,88158.0,0.18577012]
[1764032291591,0.51600513,88159.0,88158.0,0.64577012]
[1764032292087,0.51600513,88159.0,88158.0,0.18577012]
[1764032292476,0.51600513,88159.0,88158.0,0.60577012]
[1764032293086,0.51600513,88159.0,88158.0,0.18577012]
[1764032294675,0.51600513,88159.0,88158.0,0.00017012]
[1764032294877,0.1521298,88138.0,88137.0,0.14277]
[1764032295077,0.50377803,88138.0,88137.0,0.64313]
[1764032297280,0.50377803,88138.0,88137.0,0.14277]
[1764032297585,0.1521307,88131.0,88130.0,0.14277]
[1764032297788,0.15432873,88131.0,88130.0,0.55277]
[1764032298687,0.15432873,88131.0,88130.0,0.14277]
[1764032298889,0.14078,88130.0,88129.0,0.00017012]
[1764032299189,0.50377803,88130.0,88129.0,0.46072012]
[1764032299489,0.50377803,88130.0,88129.0,0.53294012]
[1764032299676,0.50377803,88130.0,88129.0,0.46072012]
[1764032300080,0.50377803,88130.0,88129.0,0.53294012]
[1764032300284,0.50377803,88130.0,88129.0,0.39017012]
[1764032300485,0.50377803,88130.0,88129.0,0.53294012]
[1764032304294,0.14297803,88130.0,88129.0,0.53294012]
[1764032304490,0.50377803,88130.0,88129.0,0.53294012]
[1764032304794,0.50377803,88130.0,88129.0,0.07072012]
[1764032304990,0.50377803,88130.0,88129.0,0.00017012]
[1764032305194,0.52485803,88130.0,88129.0,0.00017012]
[1764032305895,0.50377803,88130.0,88129.0,0.00017012]
[1764032307589,0.50377803,88130.0,88129.0,0.07072012]
[1764032307900,0.50377803,88130.0,88129.0,0.57294012]
[1764032308197,0.50377803,88130.0,88129.0,0.51294012]
[1764032309597,0.43364803,88130.0,88129.0,0.51294012]
[1764032309793,0.43364803,88130.0,88129.0,0.14294012]
[1764032309999,0.50377803,88130.0,88129.0,0.14294012]
[1764032310199,0.50377803,88130.0,88129.0,0.56294012]
[1764032310694,0.50377803,88130.0,88129.0,0.14294012]
[1764032310894,0.50377803,88130.0,88129.0,0.00017012]
[1764032310895,0.52485803,88130.0,88129.0,0.00017012]
[1764032311502,0.14078,88127.0,88126.0,0.00028369]
[1764032311694,0.14297803,88127.0,88126.0,0.00028369]
[1764032313493,0.14297803,88127.0,88126.0,0.14305369]
[1764032313699,0.14297803,88127.0,88126.0,0.57305369]
[1764032314399,0.14297803,88127.0,88126.0,0.53305369]
[1764032315305,0.00219803,88127.0,88126.0,0.14305369]
[1764032316303,0.00219803,88127.0,88126.0,0.60305369]
[1764032316804,0.00219803,88127.0,88126.0,0.14305369]
[1764032317298,0.00219803,88127.0,88126.0,0.60305369]
[1764032317991,0.00219803,88127.0,88126.0,0.14305369]
[1764032318196,0.00219803,88127.0,88126.0,0.16305369]
[1764032318597,0.00219803,88127.0,88126.0,0.52440499]
[1764032321503,0.00219803,88127.0,88126.0,0.53305369]
[1764032321706,0.00219803,88127.0,88126.0,0.18305369]
[1764032322498,0.00219803,88127.0,88126.0,0.14305369]
[1764032322702,0.00219803,88127.0,88126.0,0.52305369]
[1764032324400,0.06341803,88127.0,88126.0,0.54305369]
[1764032324596,0.13451803,88127.0,88126.0,0.14305369]
[1764032325510,0.52451803,88127.0,88126.0,0.14305369]
[1764032325699,0.13451803,88127.0,88126.0,0.14305369]
[1764032325898,0.51451803,88127.0,88126.0,0.14305369]
[1764032326502,0.13451803,88127.0,88126.0,0.14305369]
[1764032329909,0.59451803,88127.0,88126.0,0.00028369]
[1764032330607,0.59451803,88127.0,88126.0,0.06319369]
[1764032332001,0.59451803,88127.0,88126.0,0.13403369]
[1764032332403,0.54451803,88127.0,88126.0,0.00028369]
[1764032332803,0.52451803,88127.0,88126.0,0.06319369]
[1764032333013,0.52451803,88127.0,88126.0,0.13403369]
[1764032334010,0.58451803,88127.0,88126.0,0.13403369]
[1764032334614,0.00219803,88127.0,88126.0,0.13403369]
[1764032334915,0.00219803,88127.0,88126.0,0.51403369]
[1764032336409,0.01354923,88127.0,88126.0,0.51403369]
[1764032338419,0.00219803,88127.0,88126.0,0.51403369]
[1764032339324,0.01354923,88127.0,88126.0,0.51403369]
[1764032340920,0.13866923,88127.0,88126.0,0.51403369]
[1764032341125,0.13866923,88127.0,88126.0,0.13403369]
[1764032341424,0.52866923,88127.0,88126.0,0.13403369]
[1764032342021,0.50866923,88127.0,88126.0,0.13403369]
[1764032342323,0.50866923,88127.0,88118.0,0.00017012]
[1764032342324,0.1364722,88119.0,88118.0,2e-08]
[1764032342522,0.91646938,88119.0,88118.0,2e-08]
[1764032344523,0.88947023,88119.0,88118.0,2e-08]
[1764032346926,0.88947023,88119.0,88118.0,0.05744002]
[1764032347125,0.76435023,88119.0,88118.0,2e-08]
[1764032348916,0.37435023,88119.0,88118.0,0.11913002]
[1764032349223,0.67887023,88119.0,88118.0,0.11913002]
[1764032350015,0.37435023,88119.0,88118.0,0.11913002]
[1764032350628,0.43672023,88119.0,88118.0,0.11913002]
[1764032352531,0.36299803,88119.0,88118.0,0.11913002]
[1764032353826,0.36299803,88119.0,88118.0,0.16913002]
[1764032354222,0.36299803,88119.0,88118.0,0.52913002]
[1764032354623,0.48154803,88119.0,88118.0,0.14913002]
[1764032355022,0.36299803,88119.0,88118.0,0.14913002]
[1764032355221,0.36299803,88119.0,88118.0,0.35913002]
[1764032359037,0.42018803,88119.0,88118.0,0.35913002]
[1764032359239,0.36299803,88119.0,88118.0,0.35913002]
[1764032360737,0.3608,88119.0,88118.0,0.35913002]
[1764032361140,0.00017022,88127.0,88126.0,0.1276713]
[1764032361336,0.00017022,88127.0,88126.0,0.5276713]
[1764032363134,0.05719,88140.0,88134.0,0.02178]
[1764032363335,0.05719,88138.0,88135.0,0.0113501]
[1764032363662,0.3608,88150.0,88142.0,0.0113492]
[1764032363663,0.0113488,88146.0,88142.0,0.0113492]
[1764032363841,0.0685388,88146.0,88145.0,0.11632]
[1764032364030,0.07073683,88146.0,88145.0,0.11632]
[1764032364338,0.13209683,88146.0,88145.0,0.11632]
[1764032365640,0.01354683,88146.0,88145.0,0.11632]
[1764032365832,0.00219803,88146.0,88145.0,0.11632]
[1764032366034,0.00219803,88146.0,88145.0,0.49632]
[1764032366445,0.00219803,88146.0,88145.0,0.11632]
[1764032366735,0.00219803,88146.0,88145.0,0.56632]
[1764032367833,0.05938803,88146.0,88145.0,0.34632]
[1764032368138,0.13444803,88146.0,88145.0,0.11632]
[1764032368533,0.11855,88138.0,88137.0,0.11649022]
[1764032368732,0.12074803,88138.0,88137.0,0.20649022]
[1764032369137,0.13209783,88138.0,88137.0,0.20649022]
[1764032369634,0.00219803,88138.0,88137.0,0.47784012]
[1764032371043,0.12074803,88138.0,88137.0,0.19649022]
[1764032375649,0.00219803,88138.0,88137.0,0.47649022]
[1764032376446,0.05938803,88138.0,88137.0,0.47649022]
[1764032376752,0.12074803,88138.0,88137.0,0.16649022]
[1764032376941,0.12074803,88138.0,88137.0,0.36649022]
[1764032377749,0.12074803,88138.0,88137.0,0.37784012]
[1764032378444,0.00219803,88138.0,88137.0,0.37784012]
[1764032380965,0.1211387,88147.0,88146.0,0.03287]
[1764032381160,0.12333673,88147.0,88146.0,0.1415]
[1764032383260,0.12333673,88147.0,88146.0,0.10863]
[1764032383466,0.12333673,88147.0,88146.0,0.1415]
[1764032383770,0.12333673,88147.0,88146.0,0.05353]
[1764032383969,0.1211398,88138.0,88137.0,0.27879733]
[1764032384170,0.12333783,88138.0,88137.0,0.50880022]
[1764032384766,0.12333783,88138.0,88137.0,0.10880022]
[1764032389071,0.00219803,88138.0,88137.0,0.47880022]
[1764032389471,0.01354783,88138.0,88137.0,0.10880022]
[1764032389670,0.06635783,88138.0,88137.0,0.10880022]
[1764032389869,0.00219803,88138.0,88137.0,0.10880022]
[1764032390368,0.00219803,88138.0,88137.0,0.30880022]
[1764032390566,0.00219803,88138.0,88137.0,0.10880022]
[1764032390766,0.00219803,88138.0,88137.0,0.30880022]
[1764032390974,0.00219803,88138.0,88137.0,0.52880022]
[1764032391565,0.00219803,88138.0,88137.0,0.55880022]
[1764032393567,0.3608,88142.0,88141.0,0.1199794]
[1764032393776,0.3608,88142.0,88141.0,0.5599794]
[1764032395577,0.3608,88142.0,88141.0,0.54863]
[1764032395774,0.011349,88144.0,88143.0,0.10317]
[1764032395975,0.011349,88144.0,88143.0,0.36317]
[1764032396376,0.1109587,88147.0,88146.0,0.12927]
[1764032396576,0.11315673,88147.0,88146.0,0.36927]
[1764032397277,0.11315673,88147.0,88146.0,0.12927]
[1764032397473,0.06378673,88147.0,88146.0,0.12927]
[1764032397675,0.00219803,88147.0,88146.0,0.51927]
[1764032397882,0.06378663,88147.0,88146.0,0.51927]
[1764032398082,0.10180803,88147.0,88146.0,0.51927]
[1764032398283,0.00219803,88147.0,88146.0,0.51927]
[1764032399085,0.0615881,88152.0,88151.0,0.09888]
[1764032399385,0.06378613,88152.0,88151.0,0.09888]
[1764032399577,0.11315613,88152.0,88151.0,0.09888]
[1764032400177,0.10180803,88152.0,88151.0,0.70968]
[1764032400480,0.03047,88164.0,88151.0,0.70968]
[1764032400481,0.0113465,88164.0,88153.0,0.09888]
[1764032400681,0.03195,88176.0,88153.0,0.48888]
[1764032401082,0.05041022,88154.0,88153.0,0.48888]
[1764032401281,0.00017022,88154.0,88153.0,0.48888]
[1764032402285,0.09989356,88166.0,88165.0,0.09888]
[1764032402481,0.00028356,88166.0,88165.0,0.55888]
[1764032402681,0.10209159,88166.0,88165.0,0.55888]
[1764032402879,0.00011316,88166.0,88165.0,0.55888]
[1764032403184,0.46041,88187.0,88186.0,0.09888]
[1764032403374,0.47395153,88187.0,88186.0,0.09888]
[1764032403687,0.1109545,88179.0,88178.0,0.09905011]
[1764032403887,0.11315253,88179.0,88178.0,0.54905011]
[1764032404089,0.47395253,88179.0,88178.0,0.54905011]
[1764032404273,0.67442253,88179.0,88178.0,0.00017011]
[1764032404479,0.94442253,88179.0,88178.0,0.00017011]
[1764032404681,0.1109568,88161.0,88160.0,0.26883509]
[1764032404983,0.11315483,88161.0,88160.0,0.50888]
[1764032406384,0.1109578,88153.0,88152.0,0.00017011]
[1764032406584,0.47395583,88153.0,88152.0,0.00017011]
[1764032406784,0.66395583,88153.0,88152.0,0.00017011]
[1764032407195,0.47395583,88153.0,88152.0,0.00017011]
[1764032407491,0.1109607,88131.0,88130.0,0.04924]
[1764032407698,0.10180803,88131.0,88130.0,0.49888]
[1764032408388,0.00219803,88131.0,88130.0,0.49888]
[1764032408892,0.05243803,88131.0,88130.0,0.49888]
[1764032409089,0.00219803,88131.0,88130.0,0.49888]
[1764032410693,0.3608,88135.0,88134.0,0.09888]
[1764032410895,0.05041011,88139.0,88138.0,0.10149]
[1764032411095,0.10175814,88139.0,88138.0,0.10149]
[1764032411286,0.00236814,88139.0,88138.0,0.10149]
[1764032411491,0.00236814,88139.0,88138.0,0.51149]
[1764032411890,0.11330774,88139.0,88138.0,0.51149]
[1764032414900,0.06415774,88139.0,88138.0,0.51149]
[1764032415097,0.01371774,88139.0,88138.0,0.51149]
[1764032415298,0.11330774,88139.0,88138.0,0.51149]
[1764032415497,0.11330774,88139.0,88122.0,0.36097011]
[1764032415498,0.1109417,88123.0,88122.0,0.09963011]
[1764032415695,0.1109417,88123.0,88122.0,0.00017011]
[1764032415696,0.11313973,88123.0,88122.0,0.00017011]
[1764032415996,0.11313973,88123.0,88105.0,0.10126142]
[1764032415997,0.061794,88105.0,88104.0,0.13029]
[1764032416198,0.11314203,88105.0,88104.0,0.50946]
[1764032416596,0.11314203,88105.0,88104.0,0.29946]
[1764032417002,0.09959,88091.0,88090.0,0.46026]
[1764032417189,0.11314383,88091.0,88090.0,0.48946]
[1764032420301,0.00219803,88091.0,88090.0,0.5008159]
[1764032420504,0.3608,88108.0,88107.0,0.09946]
[1764032420697,0.01152322,88113.0,88112.0,0.09946]
[1764032420892,0.00236825,88113.0,88112.0,0.52946]
[1764032421889,0.10195825,88113.0,88112.0,0.52946]
[1764032422101,0.110944,88105.0,88104.0,0.00017022]
[1764032422299,0.47394203,88105.0,88104.0,0.38017022]
[1764032422502,0.47394203,88105.0,88104.0,0.42738022]
[1764032423002,0.47394203,88105.0,88104.0,0.47963022]
[1764032423800,0.36299803,88105.0,88104.0,0.47963022]
[1764032424099,0.00219803,88105.0,88104.0,0.47963022]
[1764032424695,0.10178803,88105.0,88104.0,0.00017022]
[1764032424896,0.00219803,88105.0,88104.0,0.09963022]
[1764032425095,0.00219803,88105.0,88104.0,0.54963022]
[1764032427896,0.10178803,88105.0,88104.0,0.54963022]
[1764032428296,0.10178803,88105.0,88104.0,0.00017022]
[1764032428507,0.1109463,88087.0,88086.0,0.09974382]
[1764032428695,0.47394433,88087.0,88086.0,0.53974382]
[1764032429105,0.67394433,88087.0,88086.0,0.04749382]
[1764032429303,0.47394433,88087.0,88086.0,0.00028382]
[1764032429502,0.1109471,88081.0,88078.0,0.00017022]
[1764032429699,0.11314513,88081.0,88078.0,0.00017022]
[1764032430701,0.09959,88061.0,88060.0,0.09946]
[1764032430908,0.09959,88061.0,88047.0,0.09946]
[1764032430909,0.1109514,88048.0,88047.0,0.09946]
[1764032431108,0.11314943,88048.0,88047.0,0.42946]
[1764032431610,0.11323184,88048.0,88047.0,0.42946]
[1764032432299,0.06408184,88048.0,88047.0,0.42946]
[1764032432497,0.06408184,88048.0,88047.0,0.4408215]
[1764032432498,8.241e-05,88048.0,88047.0,0.4408215]
[1764032432698,0.00017032,88056.0,88055.0,0.09946]
[1764032432897,0.00236835,88056.0,88055.0,0.52946]
[1764032434997,0.00017032,88056.0,88055.0,0.52946]
[1764032435205,0.00236835,88056.0,88055.0,0.5408205]
[1764032437707,0.00236835,88056.0,88055.0,0.52946]
[1764032438305,0.10195835,88056.0,88055.0,0.52946]
[1764032438606,0.10195835,88056.0,88055.0,0.49946]
[1764032439598,0.09959,88047.0,88046.0,0.40829394]
[1764032439804,0.10178803,88047.0,88046.0,0.89054394]
[1764032440208,0.11314953,88047.0,88046.0,0.89054394]
[1764032443004,0.05263803,88047.0,88046.0,0.89054394]
[1764032443204,0.00219803,88047.0,88046.0,0.89054394]
[1764032443402,0.00219803,88047.0,88036.0,0.3608]
[1764032443403,1.20123803,88047.0,88002.0,0.09103428]
[1764032443604,1.20123803,88047.0,87957.0,0.03052]
[1764032443605,0.21298037,88020.0,87957.0,0.03052]
[1764032443812,0.0113705,87978.0,87977.0,0.09942]
[1764032444011,0.00219803,87978.0,87977.0,0.13942]
[1764032444509,0.00219803,87978.0,87977.0,0.09942]
[1764032444711,0.00228341,87978.0,87977.0,0.09942]
[1764032445011,0.72388341,87978.0,87977.0,0.09942]
[1764032445606,0.72388341,87978.0,87975.0,0.03052]
[1764032445607,0.0113705,87977.0,87975.0,0.03052]
[1764032445800,0.00219803,87976.0,87975.0,0.03052]
[1764032446009,0.00219803,87976.0,87975.0,0.12994]
[1764032446404,0.00219803,87976.0,87975.0,0.08079]
[1764032447213,0.00219803,87976.0,87975.0,0.12994]
[1764032451106,0.00219803,87976.0,87975.0,0.08079]
[1764032451815,0.00219803,87976.0,87975.0,0.12994]
[1764032452923,0.00219803,87976.0,87975.0,0.35994]
[1764032453510,0.00219803,87976.0,87975.0,0.12994]
[1764032454810,0.00219803,87976.0,87975.0,0.15994]
[1764032455018,0.16925803,87976.0,87975.0,0.12994]
[1764032456512,0.00219803,87976.0,87975.0,0.15994]
[1764032457616,0.56242341,87978.0,87977.0,0.20703]
[1764032457808,0.56242341,87978.0,87977.0,0.23922803]
[1764032458005,0.56242341,87978.0,87977.0,0.39922803]
[1764032458210,0.56242341,87978.0,87977.0,0.59922803]
[1764032458716,0.56315607,87978.0,87977.0,0.61059853]
[1764032460410,0.56242341,87978.0,87977.0,0.61059853]
[1764032461018,0.56315607,87978.0,87977.0,0.59922803]
[1764032463414,0.66425607,87978.0,87977.0,0.59922803]
[1764032463822,0.77089607,87978.0,87977.0,0.59922803]
[1764032464017,0.77089607,87978.0,87977.0,0.20922803]
[1764032464215,0.77089607,87978.0,87966.0,0.03052]
[1764032464216,0.0113706,87977.0,87966.0,0.03052]
[1764032464417,0.36153266,87967.0,87966.0,0.66974803]
[1764032464617,0.56927266,87967.0,87966.0,0.43]
[1764032464818,0.0113732,87957.0,87956.0,0.20703]
[1764032465023,0.72233266,87957.0,87956.0,0.59922803]
[1764032469622,0.83480576,87957.0,87956.0,0.77910803]
[1764032469820,0.94144576,87957.0,87956.0,0.77910803]
[1764032470010,0.94144576,87957.0,87956.0,0.59922803]
[1764032470216,0.72233266,87957.0,87956.0,0.61060123]
[1764032470627,0.72233266,87957.0,87956.0,0.59922803]
[1764032470816,0.82343266,87957.0,87956.0,0.59922803]
[1764032471017,0.72233266,87957.0,87956.0,0.59922803]
[1764032471325,0.82776266,87957.0,87956.0,0.59922803]
[1764032471528,0.72233266,87957.0,87956.0,0.59922803]
[1764032473714,0.93070266,87957.0,87956.0,0.59922803]
[1764032474114,0.93070266,87957.0,87956.0,0.77906803]
[1764032474829,0.93070266,87957.0,87956.0,0.59922803]
[1764032475016,0.56112266,87957.0,87956.0,0.77906803]
[1764032477229,0.20032266,87957.0,87956.0,0.77906803]
[1764032477421,0.00017052,87965.0,87964.0,0.2215522]
[1764032477621,0.00017052,87965.0,87964.0,0.66375023]
[1764032478531,0.20461052,87965.0,87964.0,0.65237803]
[1764032478824,0.20461052,87965.0,87964.0,0.62203803]
[1764032479020,0.20461052,87965.0,87964.0,0.84485023]
[1764032479225,0.00017052,87965.0,87964.0,0.84485023]
[1764032480329,0.10011052,87965.0,87964.0,0.84485023]
[1764032481627,0.21598262,87965.0,87964.0,0.00219803]
[1764032481826,0.23138179,87965.0,87964.0,0.30363803]
[1764032482022,0.02694179,87965.0,87964.0,0.67501023]
[1764032482223,0.00017052,87965.0,87964.0,0.67501023]
[1764032483536,0.56524,87982.0,87981.0,0.17773]
[1764032483731,0.56524,87982.0,87981.0,0.44976803]
[1764032484235,0.56524,87982.0,87981.0,0.63976803]
[1764032484928,0.56524,87982.0,87981.0,0.46203803]
[1764032485124,0.02661782,87982.0,87981.0,0.62839803]
[1764032485325,0.00017052,87990.0,87989.0,0.16636]
[1764032485533,0.00017052,87990.0,87989.0,0.58992703]
[1764032486333,0.20461052,87990.0,87989.0,0.75839803]
[1764032486529,0.20461052,87990.0,87989.0,0.59203803]
[1764032487936,0.20461052,87990.0,87989.0,0.75839803]
[1764032488237,0.00017052,87990.0,87989.0,0.75839803]
[1764032491431,0.00017052,87990.0,87989.0,0.57855803]
[1764032491432,0.10011052,87990.0,87989.0,0.57855803]
[1764032491630,0.20461052,87990.0,87989.0,0.41219803]
[1764032491836,0.20461052,87990.0,87989.0,0.40219803]
[1764032492431,0.20461052,87990.0,87989.0,0.5798]
[1764032493138,0.20444,87974.0,87973.0,0.16653052]
[1764032493334,0.20444,87974.0,87973.0,0.79852855]
[1764032493540,0.20444,87974.0,87973.0,0.61872855]
[1764032493739,0.20444,87974.0,87973.0,0.79852855]
[1764032494626,0.20444,87974.0,87973.0,0.45236855]
[1764032494937,0.20444,87974.0,87973.0,0.63216855]
[1764032495323,0.17713818,87974.0,87973.0,0.63216855]
[1764032495524,0.17713818,87974.0,87973.0,0.73272855]
[1764032495938,0.17713818,87974.0,87973.0,0.73268855]
[1764032496234,0.17713818,87974.0,87973.0,0.63212855]
[1764032496742,0.17713818,87974.0,87973.0,0.45236855]
[1764032496946,0.17713818,87974.0,87973.0,0.63212855]
[1764032497940,0.17713818,87974.0,87973.0,0.73268855]
[1764032498142,0.17713818,87974.0,87973.0,0.55292855]
[1764032498438,0.17713818,87974.0,87973.0,0.66340855]
[1764032498643,0.3608,87978.0,87977.0,0.2224105]
[1764032498835,0.3608,87978.0,87977.0,0.62460853]
[1764032500246,0.20461052,87990.0,87989.0,0.222409]
[1764032500540,0.20461052,87990.0,87989.0,0.37460703]
[1764032500734,0.20461052,87990.0,87989.0,0.65460703]
[1764032501546,0.00017052,87990.0,87989.0,0.53460703]
[1764032501737,0.22497052,87990.0,87989.0,0.21323803]
[1764032501941,0.22497052,87990.0,87989.0,0.00219803]
[1764032502645,0.22497052,87990.0,87989.0,0.38358803]
[1764032503349,0.19767291,87990.0,87989.0,0.68358803]
[1764032509950,0.19767291,87990.0,87989.0,0.86326803]
[1764032511945,0.19767291,87990.0,87989.0,0.46219803]
[1764032512150,0.19767291,87990.0,87989.0,0.41968]
[1764032512537,0.19767291,87990.0,87989.0,0.42168]